bitfinex/quotes_ETHUSD_20251215
["timestamp","ask_amount","ask_price","bid_price","bid_amount"]
[1765762695076,0.002,3097.9,3097.8,2.45977929]
[1765762695660,0.002,3097.9,3097.8,32.45977929]
[1765762695887,0.002,3098.8,3097.8,35.68787664]
[1765762696075,0.002,3098.8,3098.7,0.880004]
[1765762696276,0.451,3100.6,3098.8,31.46047929]
[1765762696580,0.451,3100.6,3099.0,37.58209091]
[1765762696761,0.451,3100.6,3099.0,1.46047929]
[1765762696762,0.0997,3099.9,3099.0,1.46047929]
[1765762696962,0.0997,3099.9,3099.0,1.93777929]
[1765762697179,0.0997,3099.9,3099.0,2.13155722]
[1765762697568,0.5507,3099.9,3099.0,1.50797929]
[1765762697876,0.451,3099.6,3099.0,4.73482666]
[1765762698109,0.002,3099.2,3099.0,4.73482666]
[1765762698602,0.002,3099.2,3099.0,20.34750466]
[1765762698772,0.002,3099.2,3099.0,19.19652466]
[1765762698960,0.002,3099.2,3099.0,8.88740466]
[1765762699292,0.002,3099.2,3099.0,9.77940594]
[1765762699500,0.002,3099.2,3099.0,6.57862794]
[1765762700196,0.002,3099.2,3099.0,42.70023956]
[1765762700396,1e-08,3099.2,3099.1,32.11977929]
[1765762701164,0.002,3100.4,3099.1,32.13278129]
[1765762701365,0.002,3100.4,3099.6,37.59509291]
[1765762701708,0.002,3100.4,3099.6,10.58817291]
[1765762702001,0.002,3100.4,3099.6,9.14606802]
[1765762702166,0.002,3100.4,3099.6,15.26767964]
[1765762702496,0.002,3100.4,3099.6,41.80761364]
[1765762702794,0.002,3100.4,3099.6,44.71267412]
[1765762703165,0.002,3100.4,3099.6,8.0690625]
[1765762703388,0.002,3100.4,3099.6,11.80661364]
[1765762703597,0.002,3100.4,3099.6,41.80661364]
[1765762703771,0.002,3100.4,3100.3,21.73800991]
[1765762704097,0.002,3100.4,3100.3,5.20697359]
[1765762704300,0.002,3100.4,3100.3,5.68427359]
[1765762704593,0.002,3100.4,3100.3,5.64166239]
[1765762704894,0.1,3100.4,3099.3,0.4773]
[1765762705097,0.4475,3100.3,3100.2,3.22559396]
[1765762705266,0.002,3100.4,3100.3,3.80596959]
[1765762706504,0.1,3100.4,3100.3,0.58047529]
[1765762706704,0.1,3100.4,3099.1,0.001]
[1765762706705,0.5475,3100.4,3099.1,0.001]
[1765762706873,0.0045,3099.9,3099.1,0.001]
[1765762707199,0.4495,3100.4,3099.5,0.58047529]
[1765762707377,0.002,3100.4,3099.6,1.54797681]
[1765762707578,0.002,3100.4,3099.7,0.405504]
[1765762707981,0.002,3100.4,3100.2,0.405504]
[1765762708180,0.002,3100.4,3100.3,5.79226029]
[1765762708487,0.002,3100.4,3100.3,26.42651929]
[1765762708679,0.002,3100.4,3100.3,17.09414682]
[1765762709498,1e-08,3101.1,3101.0,0.497]
[1765762709807,0.003,3102.0,3101.3,0.98597929]
[1765762709974,0.003,3102.0,3101.9,4.90320984]
[1765762710180,0.003,3102.0,3101.9,6.85008798]
[1765762710512,0.137,3104.1,3102.0,30.98597929]
[1765762710682,0.137,3104.1,3103.4,0.98597929]
[1765762711006,0.1496,3105.0,3103.6,0.405504]
[1765762711007,0.137,3104.6,3103.6,0.405504]
[1765762711306,0.12637674,3106.3,3105.0,0.405504]
[1765762711491,0.12637674,3106.3,3105.2,0.58047529]
[1765762711807,0.12637674,3106.3,3105.7,0.98597929]
[1765762711973,0.12637674,3106.3,3105.8,4.20576163]
[1765762712174,0.12637674,3106.3,3105.8,4.72776163]
[1765762712502,0.11637674,3106.3,3105.9,30.98597929]
[1765762712803,3.2305922,3108.0,3105.9,30.98597929]
[1765762712804,0.1536,3107.8,3106.3,0.405504]
[1765762713114,0.013002,3108.0,3107.6,30.405504]
[1765762713285,0.013002,3108.0,3107.6,0.98597929]
[1765762713605,0.1536,3107.9,3107.3,0.522]
[1765762713805,0.013002,3108.0,3107.4,0.405504]
[1765762713971,0.013002,3108.0,3107.6,0.98597929]
[1765762714170,0.003,3108.2,3107.8,0.58047529]
[1765762714383,0.003,3108.2,3108.0,21.230946]
[1765762714607,0.00232384,3108.8,3108.2,0.405504]
[1765762714912,0.003,3111.0,3109.1,0.05]
[1765762715214,0.003,3111.0,3108.7,1.18237929]
[1765762715215,0.003,3111.0,3110.3,0.405504]
[1765762715372,0.003,3111.0,3110.4,9.08735929]
[1765762715575,0.003,3111.0,3110.5,0.98597929]
[1765762715777,0.013002,3112.2,3110.5,0.98597929]
[1765762715778,0.12859792,3116.4,3113.1,0.1964]
[1765762715977,0.12859792,3116.4,3114.2,0.58047529]
[1765762715978,0.1389,3115.8,3114.2,0.58047529]
[1765762716296,0.1389,3116.0,3114.4,0.98597929]
[1765762716476,3.76805289,3117.8,3114.3,30.0]
[1765762716477,0.1,3115.2,3114.8,30.58047529]
[1765762716678,0.4591,3116.4,3115.1,0.405504]
[1765762716889,0.1973,3116.9,3115.3,6.77705385]
[1765762717091,0.4591,3116.8,3115.9,0.405504]
[1765762717313,0.0223,3116.9,3115.1,0.05]
[1765762717606,0.0223,3116.9,3115.0,0.529]
[1765762717805,0.0223,3116.9,3115.3,0.58047529]
[1765762717987,0.0223,3116.9,3115.0,0.529]
[1765762718182,6.43896302,3116.9,3115.0,0.529]
[1765762718583,3.23065669,3116.9,3114.9,0.53]
[1765762718797,3.23065669,3116.9,3113.5,0.05]
[1765762718798,0.00962788,3115.9,3113.5,0.05]
[1765762718998,0.00962788,3115.9,3113.6,0.531]
[1765762719174,0.58047529,3115.7,3112.8,0.531]
[1765762719373,3.816371,3115.4,3112.8,0.531]
[1765762719613,3.52745,3115.2,3112.8,0.531]
[1765762719815,0.1973,3115.3,3113.3,6.77705385]
[1765762720105,0.1973,3115.3,3113.8,0.58047529]
[1765762720309,0.4591,3115.2,3113.7,1.03597929]
[1765762720496,0.4591,3115.7,3114.2,17.563196]
[1765762720685,0.4591,3115.7,3115.1,0.001]
[1765762721087,0.1973,3115.2,3115.1,0.001]
[1765762721288,0.6564,3115.2,3115.1,0.001]
[1765762721703,0.4591,3116.7,3115.2,0.405504]
[1765762721907,0.4591,3116.7,3115.1,1.2292]
[1765762721908,0.4591,3116.7,3115.4,0.405504]
[1765762722095,0.4591,3116.7,3115.7,0.405504]
[1765762722310,0.4591,3116.7,3115.6,0.58047529]
[1765762722311,0.002,3116.9,3116.1,0.405504]
[1765762722512,0.002,3116.9,3116.3,0.98597929]
[1765762722722,0.002,3116.9,3116.5,0.98597929]
[1765762722925,0.002,3116.9,3116.8,0.405504]
[1765762723330,0.16,3118.0,3117.1,0.455504]
[1765762723635,0.16,3118.0,3117.1,0.405504]
[1765762723795,0.16,3118.0,3116.9,0.405504]
[1765762723994,0.16,3118.0,3117.4,0.405504]
[1765762724196,0.04692,3120.0,3119.0,30.0]
[1765762724440,0.04692,3120.0,3119.3,30.0]
[1765762724610,0.04692,3120.0,3119.5,0.405504]
[1765762724809,0.04692,3120.0,3119.1,0.937504]
[1765762724998,0.04692,3120.0,3119.2,27.919122]
[1765762725197,0.45602,3121.0,3119.4,0.58047529]
[1765762725436,0.45602,3121.0,3119.8,30.0]
[1765762725597,3.10420391,3120.9,3119.3,0.405504]
[1765762725927,0.1973,3119.4,3118.0,17.13278]
[1765762726115,0.1973,3119.4,3118.2,3.20697838]
[1765762726326,0.1973,3119.4,3118.3,0.98597929]
[1765762726503,3.20440926,3120.7,3118.7,5.60218134]
[1765762726829,9.61322778,3120.7,3118.5,0.405504]
[1765762727027,3.20440926,3120.7,3118.7,0.58047529]
[1765762727194,9.61322778,3120.7,3118.2,3.20697838]
[1765762727395,9.61322778,3120.7,3116.6,3.40493437]
[1765762727396,5.60218134,3120.2,3116.6,0.6962]
[1765762727705,7.076755,3119.8,3116.7,0.536]
[1765762727907,5.60218134,3118.9,3115.8,5.60218134]
[1765762728114,5.72599,3119.1,3115.9,4.34396345]
[1765762728115,9.61939269,3118.7,3115.9,4.34396345]
[1765762728317,3.20646423,3118.7,3116.3,5.60218134]
[1765762728515,3.20646423,3118.7,3115.8,10.16428417]
[1765762728516,0.4591,3118.6,3116.4,0.5680883]
[1765762728706,0.4591,3118.6,3116.5,19.52160634]
[1765762729029,0.4591,3118.6,3117.2,0.405504]
[1765762729229,0.4591,3118.6,3117.4,0.405504]
[1765762729431,0.4591,3118.6,3117.4,0.536]
[1765762729598,0.4591,3118.6,3117.5,0.405504]
[1765762729800,0.4591,3118.6,3115.8,6.41883556]
[1765762730023,3.20666987,3118.5,3116.2,5.60218134]
[1765762730231,3.20666987,3118.5,3116.0,6.41848522]
[1765762730440,0.4591,3118.4,3116.0,6.41848522]
[1765762730605,0.9951,3118.4,3116.1,4.013147]
[1765762730942,0.9951,3118.4,3115.1,0.001]
[1765762730943,0.00963298,3116.6,3115.1,0.001]
[1765762731095,0.1354,3116.1,3115.1,0.001]
[1765762731496,0.4591,3116.0,3115.1,0.001]
[1765762731734,0.4591,3116.0,3113.9,0.538]
[1765762731735,0.58047529,3115.8,3113.9,0.001]
[1765762731919,0.4591,3116.0,3113.9,0.001]
[1765762731920,0.1968,3114.0,3113.9,0.001]
[1765762732133,0.537,3114.9,3113.9,0.001]
[1765762732303,0.1973,3114.2,3112.7,0.03312644]
[1765762732620,0.1973,3114.2,3112.7,0.001]
[1765762732807,0.4591,3114.1,3112.7,0.001]
[1765762733924,0.4591,3114.1,3112.9,3.21239842]
[1765762734107,0.4591,3114.1,3113.0,3.53357412]
[1765762734500,0.4591,3114.1,3113.0,6.74590948]
[1765762734701,0.4591,3114.1,3113.0,3.53357412]
[1765762734918,0.6564,3114.7,3113.1,0.58047529]
[1765762735128,0.6564,3114.7,3113.2,0.405504]
[1765762735316,0.4591,3114.6,3113.2,1.23249288]
[1765762735701,0.4591,3114.6,3113.4,0.405504]
[1765762736001,0.4591,3114.6,3113.2,3.21212899]
[1765762736337,6.88056158,3114.6,3113.3,0.58047529]
[1765762736502,6.88056158,3114.6,3113.0,0.538]
[1765762736701,0.1946,3113.1,3112.7,0.001]
[1765762737313,0.4814,3113.0,3112.7,0.001]
[1765762737727,0.4814,3114.5,3112.9,15.214169]
[1765762737904,0.4814,3114.5,3113.1,0.58047529]
[1765762738107,0.4814,3114.5,3113.2,0.58047529]
[1765762738416,0.4814,3114.5,3113.1,6.42446436]
[1765762738417,10.12365628,3114.5,3112.7,0.001]
[1765762738616,13.33452927,3114.5,3112.7,0.001]
[1765762738817,0.00963731,3114.2,3112.7,0.001]
[1765762739137,0.538,3114.2,3112.7,0.001]
[1765762739337,0.49103731,3114.1,3112.7,0.001]
[1765762739537,0.538,3114.0,3112.7,0.001]
[1765762739707,0.00963731,3113.8,3112.7,0.001]
[1765762740272,9.63514902,3113.6,3112.7,0.001]
[1765762740533,1.0116549,3113.5,3112.7,0.001]
[1765762740733,3.69230777,3114.4,3112.7,0.001]
[1765762740936,0.4814,3114.4,3112.8,2.992976]
[1765762741139,0.002,3114.6,3113.7,0.405504]
[1765762741344,0.002,3114.6,3112.7,0.001]
[1765762741345,0.4814,3114.5,3112.7,0.001]
[1765762741523,0.36941198,3114.4,3112.7,0.001]
[1765762741719,0.00963731,3113.7,3112.7,0.001]
[1765762741918,0.4814,3114.3,3112.7,0.03312644]
[1765762742121,0.4814,3114.3,3113.0,0.58047529]
[1765762742311,0.002,3114.6,3113.3,6.58816063]
[1765762742511,0.002,3114.6,3114.0,3.98557629]
[1765762742757,0.002,3114.6,3114.5,0.98597929]
[1765762743041,0.4814,3114.5,3113.2,0.539]
[1765762743208,0.36941066,3114.4,3113.0,0.58047529]
[1765762743413,0.36941066,3114.4,3113.1,0.405504]
[1765762743643,0.49103731,3114.3,3113.0,0.58047529]
[1765762743831,0.00963731,3114.1,3112.7,0.001]
[1765762744011,0.00963731,3114.1,3112.8,3.21247731]
[1765762744213,6.90400756,3114.0,3112.7,0.001]
[1765762744569,0.4814,3114.7,3112.8,12.760927]
[1765762744745,0.4814,3115.2,3113.8,0.98597929]
[1765762744909,0.00963731,3116.0,3114.0,0.405504]
[1765762745109,0.00963731,3116.0,3114.2,0.405504]
[1765762745110,0.4814,3115.3,3114.2,0.405504]
[1765762745554,0.4814,3115.3,3111.8,1.65960377]
[1765762745555,0.4814,3114.5,3113.2,5.60218134]
[1765762745724,0.4814,3115.2,3113.9,15.421051]
[1765762745924,0.4814,3115.2,3114.1,0.405504]
[1765762746125,0.4834,3115.9,3114.4,0.405504]
[1765762746330,3.6957594,3115.9,3114.4,0.405504]
[1765762746534,0.4864,3115.9,3114.4,0.405504]
[1765762746736,6.90511549,3115.9,3114.4,0.405504]
[1765762746940,0.002,3115.4,3114.5,0.944504]
[1765762747260,0.002,3115.4,3114.8,0.455504]
[1765762747459,0.002,3115.4,3115.3,20.20315034]
[1765762747678,0.002,3115.4,3115.3,9.34086363]
[1765762747961,0.002,3115.4,3115.3,5.56194029]
[1765762748161,0.002,3115.4,3115.3,4.73494301]
[1765762748334,0.002,3115.4,3115.3,14.98248701]
[1765762748536,0.002,3115.4,3115.3,17.43074823]
[1765762749123,0.002,3115.4,3115.3,4.19594301]
[1765762749457,0.002,3115.4,3115.3,3.74896372]
[1765762749752,0.002,3115.4,3115.3,4.15446772]
[1765762750052,0.002,3115.4,3115.3,4.64396772]
[1765762750252,0.002,3115.4,3115.3,19.88524101]
[1765762750431,0.002,3116.6,3116.1,0.405504]
[1765762750636,0.002,3116.6,3116.5,21.47731763]
[1765762750852,0.002,3116.6,3116.5,0.98597929]
[1765762751053,0.002,3116.6,3116.5,1.11947529]
[1765762751252,0.002,3116.6,3116.5,0.489]
[1765762751651,0.002,3116.6,3115.7,0.405504]
[1765762751886,0.002,3116.6,3115.5,0.405504]
[1765762752168,6.3676614,3116.4,3114.5,3.21078824]
[1765762752460,0.1946,3115.4,3113.5,5.60218134]
[1765762752642,0.4814,3115.3,3113.6,0.539]
[1765762752843,0.4814,3115.3,3113.6,3.75062475]
[1765762753143,0.4814,3115.3,3113.7,0.539]
[1765762753342,0.00963731,3115.2,3113.0,3.21231242]
[1765762753542,0.00963731,3115.2,3113.1,0.539]
[1765762753743,0.4814,3115.1,3113.1,0.539]
[1765762754147,9.63081861,3115.0,3113.2,3.21210895]
[1765762754349,3.21027287,3115.0,3113.3,0.58047529]
[1765762754561,0.4814,3114.9,3113.3,0.58047529]
[1765762754866,0.4814,3114.9,3113.4,1.55968422]
[1765762755052,0.4814,3114.9,3114.5,0.001]
[1765762755656,0.00963731,3114.8,3114.5,0.001]
[1765762755857,0.00963731,3114.6,3114.5,0.001]
[1765762756151,3.22032247,3114.6,3114.5,0.001]
[1765762756353,0.4814,3115.2,3114.5,0.001]
[1765762756578,0.676,3115.4,3114.5,0.001]
[1765762756761,0.676,3115.4,3114.6,0.538]
[1765762756762,0.4814,3115.3,3114.6,0.538]
[1765762756948,0.4814,3115.3,3114.5,0.001]
[1765762758042,0.00963731,3114.9,3114.5,0.001]
[1765762758252,0.00963731,3114.7,3114.5,0.001]
[1765762758454,0.64305953,3114.6,3114.5,0.001]
[1765762758660,0.4814,3114.6,3114.5,0.001]
[1765762760272,3.69208516,3114.6,3114.5,0.001]
[1765762760471,0.4814,3115.1,3114.5,0.001]
[1765762760851,0.00963731,3114.8,3114.5,0.001]
[1765762761384,0.00963731,3114.8,3113.3,0.001]
[1765762761385,0.4814,3114.7,3113.3,0.001]
[1765762761540,0.538,3114.6,3113.3,0.001]
[1765762761881,0.1392,3113.4,3113.3,0.001]
[1765762762296,3.83252265,3113.4,3113.3,0.001]
[1765762762442,14.17272284,3113.4,3112.6,0.001]
[1765762762650,0.4814,3113.3,3112.6,0.001]
[1765762762875,1.06187529,3113.3,3112.1,0.001]
[1765762763263,0.4814,3113.2,3112.1,0.001]
[1765762764164,1.0194,3113.2,3112.1,0.001]
[1765762764369,6.42446436,3113.1,3112.1,0.001]
[1765762764677,0.4814,3113.1,3112.1,0.001]
[1765762765546,0.00963824,3112.6,3112.1,0.001]
[1765762765977,0.4814,3112.5,3112.1,0.001]
[1765762766159,1.0194,3113.0,3112.1,0.001]
[1765762766367,3.21243856,3112.9,3112.1,0.001]
[1765762766676,6.42487712,3112.9,3112.1,0.001]
[1765762766975,0.46703917,3112.8,3112.1,0.001]
[1765762767189,0.4574,3112.8,3112.1,0.001]
[1765762767480,0.00963917,3112.6,3112.1,0.001]
[1765762767810,0.4574,3112.5,3112.1,0.001]
[1765762768080,0.4574,3112.5,3112.0,0.001]
[1765762768291,3.40696435,3112.1,3112.0,0.001]
[1765762768454,3.94496435,3112.1,3112.0,0.001]
[1765762768783,5.14367464,3112.1,3112.0,0.001]
[1765762769695,27.06174646,3112.1,3112.0,0.001]
[1765762769998,13.85220346,3112.1,3112.0,0.001]
[1765762770150,13.87316946,3112.1,3112.0,0.001]
[1765762770367,4.60567464,3112.1,3112.0,0.001]
[1765762770563,3.88986435,3112.1,3112.0,0.001]
[1765762770767,1.2146,3112.1,3112.0,0.001]
[1765762771015,0.1949,3112.5,3112.0,0.001]
[1765762771171,0.7329,3112.5,3112.0,0.001]
[1765762771375,0.4829,3112.4,3112.0,0.001]
[1765762771600,0.00963994,3112.1,3112.0,0.001]
[1765762771893,0.00963994,3112.3,3112.0,0.001]
[1765762772099,0.1949,3112.5,3112.0,0.001]
[1765762772400,3.6959372,3112.4,3112.0,0.001]
[1765762773300,0.4829,3112.3,3112.0,0.001]
[1765762773501,0.1949,3112.5,3112.0,0.001]
[1765762773904,3.94476022,3112.5,3112.0,0.001]
[1765762774602,0.4829,3112.9,3112.0,0.001]
[1765762774765,0.4829,3113.0,3112.0,0.001]
[1765762775309,1.22733823,3113.0,3112.0,0.001]
[1765762775694,0.1949,3112.1,3112.0,0.001]
[1765762775881,0.7319,3112.1,3112.0,0.001]
[1765762776283,1.2148,3112.1,3112.0,0.001]
[1765762776488,4.42806435,3112.1,3112.0,0.001]
[1765762776797,5.19314899,3112.1,3112.0,0.001]
[1765762777372,19.31454528,3112.1,3112.0,0.001]
[1765762777567,30.165207,3112.0,3111.4,0.001]
[1765762777767,30.165207,3112.0,3110.8,0.001]
[1765762777768,5.63354553,3111.7,3110.8,0.001]
[1765762777994,0.00963994,3110.9,3110.8,0.001]
[1765762778330,0.54663994,3110.9,3110.8,0.001]
[1765762778493,4.24404378,3110.9,3110.8,0.001]
[1765762778825,0.4829,3110.9,3110.8,0.001]
[1765762779124,0.537,3111.5,3110.8,0.001]
[1765762779623,0.49254366,3111.4,3110.8,0.001]
[1765762779919,0.4829,3111.4,3110.8,0.001]
[1765762780125,0.00964366,3111.0,3110.8,0.001]
[1765762780329,0.49254366,3111.4,3110.8,0.001]
[1765762780628,0.537,3111.3,3110.8,0.001]
[1765762780802,0.54664366,3111.3,3110.8,0.001]
[1765762781000,0.00964366,3111.1,3110.8,0.001]
[1765762781223,0.1949,3110.8,3110.2,0.001]
[1765762781404,1.0199,3110.7,3110.2,0.001]
[1765762781589,0.4829,3110.7,3110.2,0.001]
[1765762781791,0.537,3110.6,3110.2,0.001]
[1765762782302,0.4829,3110.5,3110.2,0.001]
[1765762782503,3.21502057,3110.4,3110.2,0.001]
[1765762782718,1.18383725,3110.3,3110.2,0.001]
[1765762783099,0.49254552,3110.3,3110.2,0.001]
[1765762783298,0.537,3110.3,3110.2,0.001]
[1765762783505,3.21443239,3111.0,3110.2,0.001]
[1765762783506,0.1949,3111.2,3110.2,0.001]
[1765762783709,0.537,3111.1,3110.2,0.001]
[1765762784413,3.76098366,3111.1,3110.2,0.001]
[1765762784595,4.24388366,3111.1,3110.2,0.001]
[1765762784795,1.02954552,3111.1,3110.2,0.001]
[1765762785196,4.24389709,3111.1,3110.2,0.001]
[1765762785459,0.00964552,3110.6,3110.2,0.001]
[1765762785612,0.00964552,3110.4,3110.2,0.001]
[1765762786017,0.4829,3110.3,3110.2,0.001]
[1765762786342,0.49254552,3110.9,3110.2,0.001]
[1765762786528,0.536,3110.8,3110.2,0.001]
[1765762786929,0.536,3110.7,3110.2,0.001]
[1765762787630,0.49254552,3110.6,3110.2,0.001]
[1765762787940,0.68744552,3111.2,3110.2,0.001]
[1765762788140,0.536,3111.0,3110.2,0.001]
[1765762788642,0.00964552,3110.3,3110.2,0.001]
[1765762788810,3.22437117,3110.7,3110.2,0.001]
[1765762788811,0.536,3110.4,3110.2,0.001]
[1765762789014,0.4829,3110.9,3110.2,0.001]
[1765762789215,0.536,3110.9,3110.2,0.001]
[1765762789510,0.00964552,3110.8,3110.2,0.001]
[1765762789712,0.00964552,3110.3,3110.2,0.001]
[1765762789913,0.536,3110.4,3110.2,0.001]
[1765762790813,0.4829,3110.3,3110.2,0.001]
[1765762791016,0.536,3110.4,3110.2,0.001]
[1765762791220,0.4829,3110.9,3110.2,0.001]
[1765762791419,0.00964552,3111.0,3110.2,0.001]
[1765762791420,0.00964552,3110.8,3110.2,0.001]
[1765762791725,0.00964552,3110.7,3110.2,0.001]
[1765762791935,0.00964552,3110.5,3110.2,0.001]
[1765762792317,0.00964552,3110.7,3110.2,0.001]
[1765762792532,0.00964552,3110.8,3110.2,0.001]
[1765762792738,0.00964552,3110.6,3110.2,0.001]
[1765762792961,0.20454552,3111.2,3110.2,0.001]
[1765762793163,0.54564552,3110.9,3110.2,0.001]
[1765762793668,0.536,3110.9,3110.2,0.001]
[1765762796087,0.00964552,3110.8,3110.2,0.001]
[1765762796447,0.00964552,3110.6,3110.2,0.001]
[1765762796848,0.00964552,3110.8,3110.2,0.001]
[1765762797052,0.00964552,3110.6,3110.2,0.001]
[1765762797344,0.00964552,3111.0,3110.2,0.4974]
[1765762797949,0.74154552,3111.2,3110.2,0.4974]
[1765762797950,0.002,3111.2,3110.2,0.4974]
[1765762798975,0.00964552,3111.1,3110.2,0.4974]
[1765762799163,0.00964552,3111.1,3110.2,0.001]
[1765762799363,0.00964552,3110.9,3110.2,0.001]
[1765762799957,0.00964552,3111.1,3110.2,0.001]
[1765762800159,0.00964552,3110.6,3110.2,0.001]
[1765762800383,0.002,3111.2,3110.2,0.001]
[1765762800592,0.002,3111.2,3110.9,0.1945]
[1765762800884,3.21187305,3113.5,3110.9,0.1945]
[1765762800885,0.002,3112.9,3111.2,0.405504]
[1765762801083,0.002,3112.9,3112.1,6.4265287]
[1765762801452,0.002,3112.9,3112.2,8.25165531]
[1765762801655,0.002,3112.9,3112.2,1.0304]
[1765762801885,0.002,3112.9,3112.0,0.1813]
[1765762802090,0.002,3112.9,3112.1,0.4964]
[1765762802311,0.002,3112.9,3112.1,1.78731845]
[1765762802789,0.002,3112.9,3112.2,1.0304]
[1765762802991,0.002,3112.9,3112.2,0.4964]
[1765762803177,0.002,3112.9,3112.0,0.1813]
[1765762803178,0.00964552,3112.8,3112.0,0.1813]
[1765762803381,0.00964552,3112.8,3111.6,3.71017971]
[1765762803382,0.00964552,3112.8,3111.7,0.1945]
[1765762803692,0.50894552,3112.8,3111.7,0.1945]
[1765762804063,0.00964552,3112.4,3111.7,0.1945]
[1765762804388,0.002,3112.9,3112.1,18.94632529]
[1765762804564,0.002,3112.9,3112.3,0.405504]
[1765762804767,0.002,3112.9,3112.4,1.0304]
[1765762804969,0.002,3112.9,3112.5,0.4964]
[1765762805282,0.002,3112.9,3112.7,0.58047529]
[1765762805586,0.002,3112.9,3112.8,0.70059717]
[1765762805892,0.002,3112.9,3112.3,0.4964]
[1765762806195,0.002,3112.9,3112.5,6.4256794]
[1765762806509,0.002,3112.9,3111.8,0.4964]
[1765762806793,0.002,3112.9,3111.9,3.21343634]
[1765762806990,0.002,3112.9,3112.5,3.21284472]
[1765762807151,0.002,3112.9,3111.9,6.42687796]
[1765762807356,0.002,3112.9,3112.0,1.82260309]
[1765762807753,0.002,3112.9,3112.1,0.4964]
[1765762807967,0.002,3112.9,3112.1,1.0304]
[1765762808174,0.002,3112.9,3112.2,0.534]
[1765762808816,0.002,3112.9,3111.7,3.40808219]
[1765762809020,0.002,3112.9,3111.8,7.4159468]
[1765762809203,0.002,3112.9,3112.0,6.4267352]
[1765762809521,0.002,3112.9,3112.1,7.16240218]
[1765762809670,0.002,3112.9,3112.1,0.4549]
[1765762809875,0.002,3112.9,3112.0,6.4267352]
[1765762809876,0.1902,3112.9,3112.0,3.7473676]
[1765762810077,0.1902,3112.9,3111.7,0.1945]
[1765762810078,0.652,3112.9,3111.7,0.1945]
[1765762810273,0.652,3112.9,3111.9,6.42694172]
[1765762810274,0.002,3112.9,3111.9,6.42694172]
[1765762810473,0.1902,3112.9,3112.0,0.69139775]
[1765762810691,0.002,3112.9,3111.9,3.21347086]
[1765762810893,0.4618,3112.8,3111.7,0.1945]
[1765762811093,0.002,3112.9,3111.9,6.4269286]
[1765762811404,0.002,3112.9,3112.0,0.43763767]
[1765762811604,0.002,3112.9,3112.1,0.534]
[1765762811783,0.002,3112.9,3112.2,0.4549]
[1765762812307,0.1902,3112.9,3111.8,3.21355758]
[1765762812485,0.1902,3112.9,3112.0,0.534]
[1765762812486,0.00964552,3112.8,3112.0,0.534]
[1765762812804,0.4618,3112.7,3112.0,0.001]
[1765762813373,0.36840786,3112.6,3112.0,0.001]
[1765762813800,0.4618,3112.5,3112.0,0.001]
[1765762814506,0.00964552,3112.1,3112.0,0.001]
[1765762815012,0.47144552,3112.1,3112.0,0.001]
[1765762815515,7.50119187,3112.1,3112.0,0.001]
[1765762815719,5.67608308,3112.1,3112.0,0.001]
[1765762815940,3.385,3111.7,3110.8,0.001]
[1765762816230,0.533,3111.6,3110.8,0.001]
[1765762816383,0.6808,3111.6,3110.8,0.001]
[1765762816805,0.4618,3111.5,3110.8,0.001]
[1765762817016,0.00964552,3110.9,3110.8,0.001]
[1765762817187,3.22414936,3110.9,3110.8,0.001]
[1765762817386,11.485636,3110.8,3110.2,0.001]
[1765762817593,6.407303,3110.6,3110.2,0.001]
[1765762817785,0.9948,3110.7,3110.2,0.001]
[1765762817991,0.4618,3110.6,3110.2,0.001]
[1765762818592,0.19784552,3110.3,3110.2,0.001]
[1765762819090,0.65964552,3110.3,3110.2,0.001]
[1765762819288,0.65,3110.3,3110.2,0.001]
[1765762819633,0.1882,3110.3,3110.2,0.001]
[1765762819810,0.533,3110.9,3110.2,0.001]
[1765762820001,0.00964552,3110.7,3110.2,0.001]
[1765762820186,0.1882,3110.3,3110.2,0.001]
[1765762820591,0.65,3110.3,3110.2,0.001]
[1765762820995,0.00964552,3110.7,3110.2,0.001]
[1765762822434,0.1882,3110.3,3110.2,0.001]
[1765762822590,0.4618,3110.6,3110.2,0.001]
[1765762823039,0.1882,3110.3,3110.2,0.001]
[1765762823409,23.92776794,3110.3,3109.5,0.001]
[1765762823610,0.58047529,3109.8,3108.3,0.001]
[1765762823809,0.58047529,3110.0,3108.3,0.001]
[1765762824043,0.4618,3109.9,3107.9,0.4549]
[1765762824635,0.4618,3109.9,3108.4,3.21705796]
[1765762824920,0.4618,3109.9,3108.7,3.21677871]
[1765762825235,0.533,3109.8,3108.8,0.03216675]
[1765762825443,9.64723284,3109.7,3108.0,0.4549]
[1765762825609,0.58047529,3109.6,3107.7,0.01064552]
[1765762825824,0.58047529,3109.4,3107.7,0.01064552]
[1765762826029,0.00964847,3107.8,3107.7,0.001]
[1765762826422,0.50394847,3107.8,3107.7,0.001]
[1765762827132,0.00964847,3107.8,3107.7,0.001]
[1765762827331,0.00964847,3107.8,3107.7,3.68401381]
[1765762827841,0.00964847,3108.4,3107.7,3.68401381]
[1765762827842,0.00964847,3108.4,3107.7,4.37420504]
[1765762828045,0.54364847,3108.4,3107.7,0.001]
[1765762828249,3.76075159,3108.4,3107.7,0.001]
[1765762828551,7.47215471,3108.4,3107.7,0.001]
[1765762828848,0.00965328,3107.8,3107.7,0.001]
[1765762829149,0.54365328,3107.8,3107.7,0.001]
[1765762830222,0.00965328,3108.0,3107.7,0.001]